[Event "FIDE WSCC 65 2022"]
[Site "Assisi"]
[Date "2022.11.24"]
[Round "9.5"]
[White "Werner, Clemens"]
[Black "Birnboim, Nathan"]
[Result "1/2-1/2"]
[ECO "C41"]
[WhiteElo "2236"]
[BlackElo "2361"]
[Annotator "TA"]
[PlyCount "193"]
[EventDate "2022.11.14"]
[EventType "swiss"]
[EventCountry "ITA"]
[SourceTitle "playchess.com"]
[Source "ChessBase"]
[SourceQuality "1"]
[TimeControl "40/5400+30:1800+30"]

{[%evp 9,193,15,43,16,10,9,25,11,30,4,37,17,29,0,0,0,0,0,15,0,15,-23,-16,-23,-29,-27,-32,-25,-34,-35,13,0,85,-18,-5,0,-4,-3,-10,-18,-4,-7,0,0,0,-39,-39,-39,-39,-72,-70,-162,-162,-184,-162,-260,-258,-236,-245,-205,-126,-272,-272,-267,-272,-369,-369,-369,-369,-370,-369,-364,-364,-345,-310,-369,-369,-369,-362,-362,-362,-369,-369,-369,-369,-369,-369,-369,-369,-369,-369,-369,-369,-369,-369,-369,0,-369,-369,-369,-369,-369,-369,-369,-369,-369,-369,-369,-369,-369,-369,-369,-369,-369,-369,-369,-369,-369,-369,-369,-369,-369,-369,-369,-209,-209,0,-369,-369,-369,-369,-369,-369,-369,-369,-369,-369,-369,-369,-369,-369,-369,-369,-369,-321,-321,-321,-369,-369,-369,-369,-369,-369,-369,0,-369,-209,-369,0,-336,-321,-321,-321,-321,0,-215,-159,-159,-159,-159,-159,-159,-159,-159,-159,-159,-159,-159,0,-159,-159,-159,-166,-170,-170,-174]} 1. e4 {[%emt 0:00:05]} e5 {[%emt 0:00:08]} 2. Nf3 {[%emt 0:01:34]} d6 {[%emt 0:00:09]} 3. Bc4 {[%emt 0:01:48]} Be6 {[%emt 0:00:26]} 4. Bb3 {[%emt 0:05:34]} Nf6 {[%emt 0:02:29]} 5. d3 {[%emt 0:03:10] [#]} Nbd7 $146 {[%emt 0:01:46]} ({Predecessor:} 5... Be7 6. c3 Bxb3 7. Qxb3 Qc8 8. Nbd2 O-O 9. O-O Nbd7 10. d4 c6 11. a4 Qc7 12. Re1 {1-0 (43) Golovin,L (2463)-Morozov,E (2304) Voronezh 2008}) 6. O-O {[%emt 0:00:31] C41: Philidor Defence.} Bxb3 {[%emt 0:06:50]} 7. axb3 {[%emt 0:00:07]} g6 {[%emt 0:00:30]} 8. Nc3 {[%emt 0:02:54] White has an edge.} Bg7 {[%emt 0:00:56]} 9. d4 {[%emt 0:00:20]} O-O {[%emt 0:08:22]} 10. dxe5 {[%emt 0:01:07]} dxe5 {[%emt 0:00:12]} 11. Bg5 {[%emt 0:05:07]} c6 {[%emt 0:09:26]} 12. Qd2 {[%emt 0:06:04]} Qe7 {[%emt 0:03:42]} 13. Qe3 {[%emt 0:03:33]} a6 {[%emt 0:03:58]} 14. Rfd1 {[%emt 0:06:08][%cal Bf1d1,Bd1d2,Bd2d6][%mdl 32]} Nc5 {[%emt 0:08:03]} 15. Rd2 {[%emt 0:00:40]} Ne6 {[%emt 0:05:05]} (15... Rad8 {with more complications.} 16. Rad1 Ne6 17. Bh4 Rxd2 18. Rxd2 Rd8) 16. Rad1 {[%emt 0:00:40]} ({Much worse is} 16. Nxe5 Nxg5 17. Qxg5 h6 $17) 16... Nxg5 {[%emt 0:02:05]} 17. Qxg5 {[%emt 0:01:11]} Rfe8 {[%emt 0:05:24]} 18. Rd6 {[%emt 0:01:27]} h6 {[%emt 0:00:45]} 19. Qe3 {[%emt 0:03:28]} Nd5 {[%emt 0:12:03]} 20. Qc5 {[%emt 0:24:19]} Nf4 {[%emt 0:07:12]} (20... Nf6 $11 {remains equal.}) 21. Qe3 {[%emt 0:03:40] White is more active.} (21. Qb6 $1 $16) 21... Rad8 {[%emt 0:00:36] Prevents Rd7.} 22. Rxd8 {[%emt 0:10:06]} Rxd8 {[%emt 0:00:08]} 23. Rxd8+ {[%emt 0:00:11]} Qxd8 {[%emt 0:00:04]} 24. Qd2 {[%emt 0:01:10]} Qe7 {[%emt 0:00:49]} (24... Qxd2 {simplifies} 25. Nxd2 b5 26. b4 Bf8) 25. Ne2 {[%emt 0:00:47]} Ne6 {[%emt 0:00:31][%cal Bf4e6,Be6d4,Bd4f3][%mdl 32]} 26. b4 {[%emt 0:00:15]} Nd4 {[%emt 0:04:52]} 27. c3 {[%emt 0:04:47]} Nxf3+ {[%emt 0:00:19]} 28. gxf3 $15 {[%emt 0:00:05][%mdl 4096] Endgame KQB-KQN} h5 {[%emt 0:00:31]} 29. Qe3 {[%emt 0:02:10]} Kh7 {[%emt 0:03:26]} 30. f4 {[%emt 0:00:57] [#]} (30. Qa7 $15) 30... Bh6 $1 $19 {[%emt 0:00:46]} 31. Kh1 {[%emt 0:01:00]} Qd8 {[%emt 0:06:02]} 32. h3 {[%emt 0:02:44] [#]} (32. Qf3 $142) 32... exf4 $1 {[%emt 0:00:56]} 33. Qf3 {[%emt 0:01:15]} Qd2 {[%emt 0:01:16] Prevents Nc1.} 34. Kg2 {[%emt 0:00:27]} Kg8 {[%emt 0:01:08]} 35. b3 {[%emt 0:02:01]} (35. e5 $17) 35... Bg7 {[%emt 0:00:55]} 36. c4 {[%emt 0:02:08]} Be5 {[%emt 0:00:41]} ({And not} 36... Qxb4 37. Nxf4 Qd6 38. Nd3 $17) 37. b5 {[%emt 0:01:09]} axb5 {[%emt 0:01:14]} (37... cxb5 $2 {perishes.} 38. cxb5 axb5 39. Ng1 $19) 38. cxb5 {[%emt 0:00:05]} cxb5 {[%emt 0:00:10]} 39. Ng1 {[%emt 0:00:15]} Kf8 {[%emt 0:01:14]} 40. Qe2 {[%emt 0:00:06]} Qxe2 {[%emt 0:00:25]} 41. Nxe2 {[%emt 0:30:08] KB-KN} Ke7 {[%emt 0:30:43]} 42. Kf3 {[%emt 0:00:49]} g5 {[%emt 0:00:51]} 43. Nc1 {[%emt 0:00:06]} Kd6 {[%emt 0:03:08] Hoping for ...Kc5.} 44. Nd3 {[%emt 0:02:05]} f6 {[%emt 0:00:12]} 45. Ke2 {[%emt 0:01:46]} g4 {[%emt 0:00:17]} 46. hxg4 {[%emt 0:00:14]} hxg4 {[%emt 0:00:07]} 47. f3 {[%emt 0:01:41]} g3 {[%emt 0:00:45]} 48. Ne1 {[%emt 0:00:13]} Bd4 {[%emt 0:00:00]} 49. Ng2 {[%emt 0:00:00]} Ke5 {[%emt 0:00:00]} 50. Kd3 {[%emt 0:00:00]} Bc5 {[%emt 0:00:00]} 51. Kc3 {[%emt 0:00:00]} Bf2 {[%emt 0:00:00]} 52. Kd3 {[%emt 0:00:00]} Bc5 {[%emt 0:00:00]} 53. Kc3 $1 {[%emt 0:00:00]} Bd6 {[%emt 0:00:00]} 54. Kd3 {[%emt 0:00:00]} Ke6 {[%emt 0:00:00]} 55. Kd4 {[%emt 0:00:00]} Kd7 {[%emt 0:00:00]} 56. Kd5 {[%emt 0:00:00]} Kc7 {[%emt 0:00:00]} 57. Kd4 {[%emt 0:00:00]} Kb6 {[%emt 0:00:00]} 58. Kd3 {[%emt 0:00:00]} Kc5 {[%emt 0:00:00]} 59. Kc3 {[%emt 0:00:00]} Be5+ {[%emt 0:00:00]} 60. Kd3 {[%emt 0:00:00]} Kd6 {[%emt 0:00:00]} 61. Nh4 {[%emt 0:00:00]} Ke6 {[%emt 0:00:00]} 62. Ke2 {[%emt 0:00:00]} Bc7 {[%emt 0:00:00]} 63. Kd3 {[%emt 0:00:00]} Bb6 {[%emt 0:00:00]} 64. Ng2 {[%emt 0:00:00]} Ke5 {[%emt 0:00:00]} 65. Kc3 {[%emt 0:00:00]} Bc5 {[%emt 0:00:00]} 66. Kd3 {[%emt 0:00:00]} Bb4 {[%emt 0:03:52]} (66... Bd6 $142 {And now ...Bb4 would win.} 67. Nh4 Bc7 68. Ng6+ Ke6) 67. Nh4 {[%emt 0:11:53]} Bd6 $2 {[%emt 0:01:07]} (67... Kd6 $19 68. Ng2 Ke5) 68. Kc3 $2 {[%emt 0:00:00][%mdl 8192]} (68. Ng2 $1 $11 {and White stays safe.} Bc7 69. Nh4) 68... Bc7 {[%emt 0:02:55]} 69. Kd3 {[%emt 0:00:00]} Kd6 {[%emt 0:02:11]} 70. Ng2 {[%emt 0:00:00]} Kc5 {[%emt 0:00:23]} 71. Kc3 {[%emt 0:00:00]} Ba5+ {[%emt 0:01:39]} 72. Kd3 {[%emt 0:00:00]} Kb4 {[%emt 0:00:18]} 73. Kc2 {[%emt 0:00:00]} Bc7 {[%emt 0:00:12]} 74. Kb2 {[%emt 0:00:00]} Be5+ {[%emt 0:01:02]} 75. Kc2 {[%emt 0:00:00]} Ka3 {[%emt 0:00:31]} 76. Nh4 {[%emt 0:00:00]} Bd4 {[%emt 0:00:13]} 77. Ng2 {[%emt 0:00:00]} Be3 {[%emt 0:00:12]} 78. Nh4 {[%emt 0:00:00]} Kb4 {[%emt 0:00:48]} 79. Ng2 {[%emt 0:00:00]} Kc5 {[%emt 0:00:19]} 80. Kd3 {[%emt 0:00:00]} Kd6 {[%emt 0:01:24]} 81. Ke2 {[%emt 0:00:00]} Kc5 {[%emt 0:01:00]} 82. Kd3 $1 {[%emt 0:00:00]} Bc1 {[%emt 0:00:13]} (82... Kc6 $142 {White must now prevent ...Kd6.} 83. Kc2 Kd6) 83. Kc3 $2 {[%emt 0:00:00]} (83. Kc2 Be3 84. Kd3) 83... Be3 {[%emt 0:00:28]} 84. Kd3 {[%emt 0:00:00]} b4 {[%emt 0:00:39]} 85. Nh4 {[%emt 0:00:00]} b5 {[%emt 0:00:09]} 86. Ng2 {[%emt 0:00:00]} Bc1 $2 {[%emt 0:00:33]} (86... Kd6 $19 {aiming for ...Ke6.} 87. Nh4 Ke6) 87. Nh4 $2 {[%emt 0:00:00]} (87. Kc2 $1 $11 {and White has nothing to worry.} Be3 88. Kd3) 87... f5 {[%emt 0:00:40]} 88. exf5 {[%emt 0:00:00]} Kd5 {[%emt 0:00:07]} 89. f6 {[%emt 0:00:00]} Ke6 {[%emt 0:00:20] Against f7} 90. Ke4 {[%emt 0:00:00]} Kxf6 {[%emt 0:00:10]} 91. Kd5 {[%emt 0:00:00]} Be3 {[%emt 0:00:18]} 92. Kd6 {[%emt 0:00:00]} Bf2 {[%emt 0:00:21]} 93. Ng2 {[%emt 0:00:00]} Be3 {[%emt 0:00:29]} 94. Nh4 $1 {[%emt 0:00:00]} Bd2 {[%emt 0:01:07] Black is clearly better.} 95. Ng2 {[%emt 0:00:00]} Kf5 {[%emt 0:00:26]} 96. Nh4+ {[%emt 0:00:00]} Kg5 {[%emt 0:00:14]} 97. Ng2 {[%emt 0:00:00] Weighted Error Value: White=0.17 (very precise) /Black=0.16 (very precise)} 1/2-1/2

[Event "FIDE WSCC 65 2022"]
[Site "Assisi"]
[Date "2022.11.24"]
[Round "9.6"]
[White "Maryasin, Boris"]
[Black "Roos, Louis"]
[Result "1/2-1/2"]
[ECO "C16"]
[WhiteElo "2258"]
[BlackElo "2293"]
[Annotator "TA"]
[PlyCount "105"]
[EventDate "2022.11.14"]
[EventType "swiss"]
[EventCountry "ITA"]
[SourceTitle "playchess.com"]
[Source "ChessBase"]
[SourceQuality "1"]
[TimeControl "40/5400+30:1800+30"]

{[%evp 12,105,60,46,117,64,95,93,120,67,91,41,57,45,29,25,50,25,17,21,20,28,53,-33,-33,-47,-23,-30,0,0,0,0,0,-13,0,-52,-52,-38,-31,-54,8,8,53,0,0,0,0,0,0,0,0,0,0,0,0,0,0,-17,-17,-17,0,0,0,-15,0,0,0,0,0,0,0,0,0,0,0,0,0,0,0,0,0,0,0,0,0,0,0,0,0,0,0,0,0,0,0,0]} 1. e4 {[%emt 0:00:05]} e6 {[%emt 0:00:06]} 2. d4 {[%emt 0:00:12]} d5 {[%emt 0:00:08]} 3. Nc3 {[%emt 0:00:27]} Bb4 {[%emt 0:01:20]} 4. e5 {[%emt 0:00:28]} Qd7 {[%emt 0:02:31]} 5. Qg4 {[%emt 0:04:04]} f5 {[%emt 0:02:27]} 6. Qg3 {[%emt 0:00:37]} b6 {[%emt 0:02:10]} 7. a3 {[%emt 0:01:30]} Bf8 {[%emt 0:00:25] [#] C16: French: 3 Nc3 Bb4 4 e5: Lines without ...c5.} (7... Bxc3+ $14 8. bxc3 (8. Qxc3 Ne7 $14) 8... Ba6) 8. a4 $146 {[%emt 0:03:11] White is more active.} (8. Nf3 $16) ({Predecessor:} 8. Bb5 c6 9. Ba4 Ba6 10. Nge2 b5 11. Bb3 c5 12. dxc5 Bxc5 13. Be3 Bxe3 14. Qxe3 Nc6 15. Qg3 {1-0 (53) Sargissyan,S (2269)-Yaksin,O (2377) Chess.com INT 2021}) 8... a5 {[%emt 0:06:12]} 9. Nf3 {[%emt 0:03:51]} Bb4 {[%emt 0:04:07] White is better.} 10. Bd2 {[%emt 0:00:54]} ({Better is} 10. Bb5 $16 c6 11. Be2) 10... Bxc3 {[%emt 0:05:17]} 11. Bxc3 {[%emt 0:00:28]} (11. bxc3 $16 Ba6 12. Bxa6 Nxa6 13. O-O) 11... Ba6 $14 {[%emt 0:00:30] Prevents Bb5.} 12. Bxa6 {[%emt 0:02:03]} Nxa6 {[%emt 0:00:17]} 13. O-O {[%emt 0:00:20]} h6 {[%emt 0:04:28]} 14. h4 {[%emt 0:00:38]} Qf7 {[%emt 0:00:50]} 15. Bd2 {[%emt 0:01:22]} Ne7 {[%emt 0:00:27]} 16. c3 {[%emt 0:01:11]} Qh5 {[%emt 0:18:46]} 17. Qh3 {[%emt 0:06:05]} (17. b4 $14) 17... c5 $15 {[%emt 0:02:51]} 18. b3 {[%emt 0:10:29]} Qg4 {[%emt 0:00:58]} 19. h5 {[%emt 0:01:20]} g6 {[%emt 0:02:45]} 20. hxg6 {[%emt 0:04:01]} Nxg6 {[%emt 0:02:47]} 21. Rfb1 {[%emt 0:08:52]} (21. Bxh6 $2 Nf4 22. Qxg4 Ne2+ 23. Kh1 fxg4 $19) 21... h5 {[%emt 0:03:27]} 22. Ng5 {[%emt 0:01:06]} cxd4 {[%emt 0:10:38]} 23. Nxe6 {[%emt 0:04:16]} (23. Qd3 $11 O-O 24. cxd4 (24. Qxd4 f4 $15) (24. Nxe6 Nc5 $11)) 23... Qxh3 $1 {[%emt 0:03:18]} 24. gxh3 {[%emt 0:00:09]} dxc3 {[%emt 0:01:15]} 25. Bxc3 {[%emt 0:00:07]} Ke7 {[%emt 0:00:11]} (25... Rc8 $15 26. Bd4 Rg8) 26. Nd4 $11 {[%emt 0:01:43]} Nh4 {[%emt 0:03:41]} 27. b4 {[%emt 0:01:18]} (27. Be1 $14) 27... Rhc8 {[%emt 0:04:22] The position is equal.} 28. Ra3 {[%emt 0:01:42]} axb4 {[%emt 0:04:21]} 29. Bxb4+ {[%emt 0:00:15]} Nxb4 {[%emt 0:00:12]} 30. Rxb4 {[%emt 0:00:07]} Rc4 {[%emt 0:00:20]} 31. Rxc4 {[%emt 0:06:29]} dxc4 {[%emt 0:00:14][%cal Bd5c4,Bc4c3][%mdl 4128] Endgame KRN-KRN} 32. f4 {[%emt 0:00:29]} Rc8 {[%emt 0:01:45] [#] ...c3 is the strong threat.} 33. Rg3 {[%emt 0:01:09]} Kf7 {[%emt 0:01:16] aiming for ...c3.} 34. Kf2 {[%emt 0:01:20]} c3 {[%emt 0:00:40] Strongly threatening ...c2.} 35. Rg1 {[%emt 0:00:48]} c2 {[%emt 0:01:04]} (35... Rc4 $5 {[%cal Rc4d4]} 36. Ne2 c2 $17) 36. Rc1 {[%emt 0:00:08]} Rc4 {[%emt 0:00:46][%csl LRa4,LRd4]} 37. Ke3 {[%emt 0:00:24]} Rc3+ {[%emt 0:00:14]} ({Resist} 37... Rxa4 38. Rxc2 Ng6 39. Rc7+ (39. Nxf5 Nxf4 40. Nd4 Ne6 $11) 39... Ke8 40. Nxf5 Nxf4 41. Rh7 $11) (37... Ng2+ {feels hotter.} 38. Kf3 Rxd4 39. Kxg2 Rc4) 38. Kd2 {[%emt 0:01:59]} Rxh3 {[%emt 0:00:14]} 39. Rxc2 {[%emt 0:00:34] [#] Black must now prevent Rc7+.} Nf3+ {[%emt 0:00:13]} 40. Nxf3 {[%emt 0:00:22]} Rxf3 {[%emt 0:00:06] KR-KR} 41. Rc4 {[%emt 0:30:41]} h4 {[%emt 0:35:10]} 42. Ke2 {[%emt 0:00:16]} Ra3 {[%emt 0:01:12]} 43. Rc7+ {[%emt 0:02:03]} Kg6 {[%emt 0:01:37]} 44. Rc6+ {[%emt 0:06:10]} Kh5 {[%emt 0:00:26]} 45. e6 {[%emt 0:03:47] And now e7 would win.} Rxa4 {[%emt 0:00:34]} 46. Kf3 {[%emt 0:00:15]} Kg6 {[%emt 0:03:19] Hoping for ...Ra3+.} 47. Rxb6 {[%emt 0:00:51]} Ra3+ {[%emt 0:00:11]} 48. Kg2 {[%emt 0:00:17]} Kf6 {[%emt 0:00:19]} 49. e7+ {[%emt 0:00:21]} Kxe7 {[%emt 0:00:19]} 50. Rh6 {[%emt 0:00:04]} Rg3+ {[%emt 0:00:12]} 51. Kf2 {[%emt 0:00:19]} Rg4 {[%emt 0:00:10]} 52. Kf3 {[%emt 0:00:10]} Kf7 {[%emt 0:01:00]} 53. Ke3 {[%emt 0:00:56] Weighted Error Value: White=0.11 (very precise) /Black=0.11 (very precise)} 1/2-1/2

[Event "FIDE WSCC 65 2022"]
[Site "Assisi"]
[Date "2022.11.24"]
[Round "9.7"]
[White "Renman, Nils-Gustaf"]
[Black "Gaprindashvili, Nona"]
[Result "1-0"]
[ECO "A44"]
[WhiteElo "2320"]
[BlackElo "2268"]
[Annotator "TA"]
[PlyCount "159"]
[EventDate "2022.11.14"]
[EventType "swiss"]
[EventCountry "ITA"]
[SourceTitle "playchess.com"]
[Source "ChessBase"]
[SourceQuality "1"]
[TimeControl "40/5400+30:1800+30"]

{[%evp 9,159,73,128,132,140,126,137,121,161,140,144,131,133,110,122,117,114,108,134,115,133,103,127,123,134,141,157,141,142,138,141,120,106,89,92,97,96,84,108,102,115,115,116,116,116,115,116,110,110,108,102,101,102,101,108,84,113,109,116,108,115,77,77,77,77,77,77,77,77,77,77,77,77,77,77,77,102,77,102,81,81,77,81,77,77,77,81,81,81,81,81,0,102,0,102,102,102,102,102,102,102,102,102,102,102,102,103,103,103,103,103,103,103,103,103,81,110,0,0,0,0,0,0,0,0,0,0,0,0,0,0,0,0,67,72,72,497,440,72,80,80,80,1376,1208,1383,1383,1383,1312,1254,1052,1044,625]} 1. d4 {[%emt 0:00:02]} c5 {[%emt 0:00:12]} 2. d5 {[%emt 0:00:21]} e5 {[%emt 0:00:02]} 3. e4 {[%emt 0:00:12]} d6 {[%emt 0:00:01]} 4. Nc3 {[%emt 0:00:11]} g6 {[%emt 0:00:22]} 5. h4 {[%emt 0:01:17][%cal Bh2h4,Bh4h5][%mdl 32] [#]} f6 $146 {[%emt 0:00:40]} (5... h5 $142) ({Predecessor:} 5... Bh6 6. h5 Bxc1 7. Qxc1 g5 8. Nge2 Nh6 9. Ng3 O-O 10. Bd3 a6 11. a4 b6 12. Nd1 Ra7 {1-0 (44) So,W (2770)-Duda,J (2743) Chess.com INT 2020}) 6. h5 $16 {[%emt 0:00:44] Hoping for hxg6. A44: Semi-Benoni.} Nh6 {[%emt 1:32:13]} 7. Be2 {[%emt 0:06:42]} Na6 {[%emt 0:00:00]} 8. Nf3 {[%emt 0:00:39] White is clearly better.} g5 {[%emt 0:00:00]} 9. Nh2 {[%emt 0:03:43]} Nc7 {[%emt 0:00:00]} 10. a4 {[%emt 0:04:39]} Bd7 {[%emt 0:00:00]} 11. Rb1 {[%emt 0:05:47]} Qc8 {[%emt 0:00:00]} 12. Be3 {[%emt 0:03:01]} Be7 {[%emt 0:00:00]} 13. Qd2 {[%emt 0:01:43]} Nf7 {[%emt 0:00:00]} 14. Nf1 {[%emt 0:00:39]} O-O {[%emt 0:00:00]} 15. Ng3 {[%emt 0:00:39]} Nh6 {[%emt 0:00:00]} 16. f3 {[%emt 0:04:36]} Qe8 {[%emt 0:00:00]} 17. b4 {[%emt 0:00:24] aiming for bxc5.} b6 {[%emt 0:00:00]} 18. bxc5 {[%emt 0:01:04]} bxc5 {[%emt 0:00:00]} 19. O-O {[%emt 0:06:21]} Bd8 {[%emt 0:00:00]} 20. Nb5 {[%emt 0:03:35]} Nxb5 {[%emt 0:00:00]} 21. Bxb5 {[%emt 0:00:44]} a6 {[%emt 0:00:00]} 22. Bxd7 {[%emt 0:04:23]} Qxd7 {[%emt 0:00:00]} 23. a5 {[%emt 0:02:28]} Qa4 {[%emt 0:00:00]} 24. Ra1 {[%emt 0:01:12]} Qe8 {[%emt 0:00:00]} 25. Rfb1 {[%emt 0:01:03]} Rf7 {[%emt 0:00:00]} 26. Nf1 {[%emt 0:05:40][%cal Bg3f1,Bf1e3,Be3c4][%mdl 32]} Rfa7 {[%emt 0:00:00] [#]} 27. g4 $1 {[%emt 0:00:17]} Qd7 {[%emt 0:00:00]} 28. Qe1 {[%emt 0:22:28]} Rb7 {[%emt 0:00:00]} 29. Rxb7 {[%emt 0:01:33]} Qxb7 {[%emt 0:00:00]} 30. Bd2 {[%emt 0:00:30]} Rb8 {[%emt 0:00:00]} 31. Ne3 {[%emt 0:00:05]} Qb5 {[%emt 0:00:00]} 32. Qf1 {[%emt 0:01:38]} Nf7 {[%emt 0:00:00]} 33. Nc4 {[%emt 0:01:54]} Kf8 {[%emt 0:00:00]} 34. Bc3 {[%emt 0:00:29]} Bc7 {[%emt 0:00:00]} 35. Na3 {[%emt 0:01:33]} Qxf1+ {[%emt 0:00:00]} 36. Kxf1 {[%emt 0:00:15]} Ke8 {[%emt 0:00:00]} 37. Ke2 {[%emt 0:01:26]} Kd7 {[%emt 0:00:00]} 38. Kd3 {[%emt 0:01:24]} Kc8 {[%emt 0:00:00]} 39. Nc4 {[%emt 0:01:43]} Rb5 {[%emt 0:00:00]} 40. Ne3 {[%emt 0:02:15]} Nh6 {[%emt 0:00:00]} 41. Ra3 {[%emt 0:31:04]} Kb7 {[%emt 0:22:11]} 42. Rb3 {[%emt 0:00:20]} Ka7 {[%emt 0:00:17]} 43. Nc4 {[%emt 0:00:28]} Nf7 {[%emt 0:01:15]} 44. Na3 {[%emt 0:00:13]} Rb7 {[%emt 0:00:10]} 45. Kc4 {[%emt 0:00:31]} Bd8 {[%emt 0:00:50]} 46. Nb1 {[%emt 0:01:32]} Bc7 {[%emt 0:00:43]} 47. Nd2 {[%emt 0:00:08]} Bd8 {[%emt 0:00:11]} 48. Nf1 {[%emt 0:00:21]} Bc7 {[%emt 0:00:51]} 49. Ne3 {[%emt 0:00:05]} Nh6 {[%emt 0:00:13]} 50. Kd3 {[%emt 0:04:05]} Rb5 $1 {[%emt 0:00:14]} 51. Nc4 {[%emt 0:00:05]} Nf7 {[%emt 0:00:10]} 52. Kd2 {[%emt 0:00:36]} Rb7 {[%emt 0:00:16]} 53. Kc1 {[%emt 0:00:11]} Rb5 {[%emt 0:00:12]} 54. Kb2 {[%emt 0:00:09]} Rb7 {[%emt 0:00:13]} 55. Ka3 {[%emt 0:00:06]} Rb5 {[%emt 0:00:37]} 56. Ka4 {[%emt 0:00:09]} Rb7 {[%emt 0:00:21]} 57. Bd2 {[%emt 0:01:48]} Bd8 {[%emt 0:00:50]} 58. Be3 {[%emt 0:00:37][%cal Oc4d6]} Bc7 {[%emt 0:01:15]} 59. Bf2 {[%emt 0:00:19] White is much more active.} Nh6 {[%emt 0:02:16]} 60. Nb2 {[%emt 0:02:39]} Ka8 {[%emt 0:02:31]} 61. Nd3 {[%emt 0:02:35]} Nf7 {[%emt 0:01:27]} 62. Rxb7 {[%emt 0:01:49]} Kxb7 {[%emt 0:00:04]} 63. Bxc5 {[%emt 0:01:36]} dxc5 $11 {[%emt 0:00:12]} 64. Nxc5+ {[%emt 0:00:04]} Ka7 {[%emt 0:06:11] Strongly threatening ...Nd8.} 65. Nd7 {[%emt 0:00:45]} Bd8 {[%emt 0:03:49]} 66. c4 {[%emt 0:00:29]} Kb7 {[%emt 0:01:11]} 67. c5 {[%emt 0:00:00]} Kc7 {[%emt 0:00:00]} 68. Nf8 {[%emt 0:00:00]} h6 {[%emt 0:00:00]} 69. Ne6+ {[%emt 0:00:00]} Kc8 {[%emt 0:00:00]} ({Resist} 69... Kd7 70. c6+ Kc8 71. Nc5 $16) 70. Kb4 {[%emt 0:00:00]} (70. d6 $11) 70... Be7 $14 {[%emt 0:00:00]} 71. d6 {[%emt 0:00:00]} Nxd6 {[%emt 0:00:00]} 72. cxd6 {[%emt 0:00:00]} Bxd6+ {[%emt 0:00:00][%mdl 4096] Endgame KB-KN} 73. Kc4 {[%emt 0:00:00]} Kd7 {[%emt 0:00:00]} 74. Kd5 {[%emt 0:00:00] And now Ng7 would win.} Bb4 {[%emt 0:00:00] [#]} 75. Ng7 $1 {[%emt 0:00:00]} Bxa5 $2 {[%emt 0:00:00][%mdl 8192]} (75... Bd6 $16 76. Nf5 Bf8) 76. Nf5 $18 {[%emt 0:00:00] White is clearly winning.} Bd8 {[%emt 0:00:00]} 77. Nxh6 {[%emt 0:00:00] Nf5 would kill now.} Ke7 {[%emt 0:00:00]} 78. Nf5+ {[%emt 0:00:00]} Kf8 {[%emt 0:00:00]} 79. Kc6 {[%emt 0:00:00]} Kg8 {[%emt 0:00:00]} 80. Nd6 {[%emt 0:00:00] Weighted Error Value: White=0.09 (flawless) /Black=0.06 (flawless)} 1-0

[Event "FIDE WSCC 65 2022"]
[Site "Assisi"]
[Date "2022.11.24"]
[Round "9.8"]
[White "Bergstrom, Rolf"]
[Black "Vaisser, Anatoly"]
[Result "1/2-1/2"]
[ECO "B22"]
[WhiteElo "2166"]
[BlackElo "2463"]
[Annotator "TA"]
[PlyCount "74"]
[EventDate "2022.11.14"]
[EventType "swiss"]
[EventCountry "ITA"]
[SourceTitle "playchess.com"]
[Source "ChessBase"]
[SourceQuality "1"]
[TimeControl "40/5400+30:1800+30"]

{[%evp 10,74,12,16,3,0,14,6,6,0,3,0,33,47,35,22,23,1,45,43,43,44,41,43,106,89,119,114,133,118,147,118,310,304,327,319,377,375,262,58,68,59,62,18,19,8,8,8,8,8,8,8,14,8,8,8,8,0,2,2,2,0,0,0,6,0,28]} 1. e4 {[%emt 0:00:07][%cal Be2e4,Be4e5][%mdl 32]} c5 {[%emt 0:00:12]} 2. c3 {[%emt 0:00:56]} Nf6 {[%emt 0:00:37]} 3. e5 {[%emt 0:00:23]} Nd5 {[%emt 0:00:08]} 4. Nf3 {[%emt 0:00:40]} e6 {[%emt 0:01:05]} 5. g3 {[%emt 0:02:21]} Nc6 {[%emt 0:02:35]} 6. Bg2 {[%emt 0:00:11]} d6 {[%emt 0:00:48] B22: Sicilian: 2 c3.} 7. exd6 {[%emt 0:00:44]} Bxd6 {[%emt 0:00:28]} 8. d4 {[%emt 0:02:53]} cxd4 {[%emt 0:05:59]} 9. Nxd4 {[%emt 0:00:20]} Nxd4 {[%emt 0:05:22]} 10. Qxd4 {[%emt 0:00:46]} Nf6 {[%emt 0:04:45] [#]} 11. O-O $146 {[%emt 0:05:04]} (11. Bg5 {looks sharper.} e5 12. Qd3 Be6 13. Nd2) ({Predecessor:} 11. Bg5 e5 12. Qa4+ Bd7 13. Qc2 Rb8 14. Nd2 O-O 15. Nc4 Be7 16. O-O Bb5 17. Rfd1 {0-1 (56) Lopez de Turiso,J (1933)-Merayo Estevez,V (1566) Madrid 2018}) 11... e5 {[%emt 0:07:01]} 12. Qd3 {[%emt 0:05:49]} O-O {[%emt 0:04:07]} 13. Rd1 {[%emt 0:09:20]} Bc7 {[%emt 0:02:21]} 14. Qxd8 {[%emt 0:00:45]} Rxd8 {[%emt 0:04:07]} 15. Rxd8+ {[%emt 0:00:33]} Bxd8 {[%emt 0:00:03]} 16. Na3 {[%emt 0:03:55]} Ne8 {[%emt 0:08:31]} (16... Bc7 $14) 17. Be3 {[%emt 0:02:50]} Be7 {[%emt 0:06:28]} 18. Nc4 {[%emt 0:01:37]} f6 {[%emt 0:00:36]} 19. Rd1 {[%emt 0:10:57]} Kf8 {[%emt 0:05:31]} 20. b3 {[%emt 0:09:52] White is much more active. The black rooks are badly placed.} Rb8 $2 {[%emt 0:03:20]} (20... g5 $16 21. f4 exf4 22. gxf4 g4) 21. Bxa7 $18 {[%emt 0:05:58]} Ra8 {[%emt 0:00:08] [#]} 22. Nb6 $1 {[%emt 0:01:30]} Rxa7 {[%emt 0:00:22]} 23. Nxc8 {[%emt 0:00:08]} Rxa2 {[%emt 0:00:10]} 24. Nxe7 $2 {[%emt 0:05:10]} ({Don't do} 24. Bxb7 $6 Bc5 $16) (24. Rd7 $18) 24... Kxe7 $14 {[%emt 0:00:09]} 25. Bxb7 $18 {[%emt 0:00:15][%mdl 4096] Endgame KRB-KRN} Rc2 {[%emt 0:04:42]} 26. Rd3 {[%emt 0:01:21]} (26. c4 $5 {[%cal Rb7c6]}) 26... Nd6 {[%emt 0:01:38] The position is equal.} 27. Bc6 {[%emt 0:01:07]} e4 {[%emt 0:05:00] Prevents c4.} 28. Re3 {[%emt 0:04:56]} f5 {[%emt 0:00:18]} 29. f3 {[%emt 0:02:43][%cal Rf3e4]} Kf6 $1 {[%emt 0:00:32]} 30. fxe4 {[%emt 0:00:38]} fxe4 {[%emt 0:00:05]} 31. Bxe4 {[%emt 0:06:24]} Nxe4 {[%emt 0:00:23]} 32. Rxe4 {[%emt 0:00:07] aiming for Rc4.} Rxc3 $11 {[%emt 0:00:04] KR-KR} 33. Rb4 {[%emt 0:02:47]} Rc1+ {[%emt 0:00:38]} 34. Kg2 {[%emt 0:00:14]} Rc2+ {[%emt 0:00:03]} 35. Kg1 {[%emt 0:02:15]} Rc1+ {[%emt 0:01:08]} 36. Kg2 {[%emt 0:00:11]} Rc2+ {[%emt 0:00:07]} 37. Kg1 {[%emt 0:13:13]} Ke5 {[%emt 0:29:29] Weighted Error Value: White=0.19 (very precise) /Black=0.20 (precise)} 1/2-1/2